[Event "*** Titled Tuesday Blitz"]
[Site "Chess.com"]
[Date "2019.03.05"]
[Round "6"]
[White "pedro_gines"]
[Black "andrzej"]
[Result "0-1"]
[WhiteElo "2395"]
[BlackElo "2289"]
[TimeControl "180+2"]
[EndTime "14:30:50 PST"]
[Termination "andrzej won by resignation"]

1. Nf3 {[%clk 0:03:01.9]} 1... e6 {[%clk 0:02:57.3]} 2. b3 {[%clk 0:03:00.3]}
2... c5 {[%clk 0:02:52.8]} 3. Bb2 {[%clk 0:02:53.8]} 3... Nc6 {[%clk 0:02:54.2]}
4. e3 {[%clk 0:02:53.4]} 4... b6 {[%clk 0:02:53.2]} 5. d4 {[%clk 0:02:48.1]}
5... cxd4 {[%clk 0:02:54.3]} 6. exd4 {[%clk 0:02:49.2]} 6... d5 {[%clk 0:02:54]}
7. Be2 {[%clk 0:02:50.6]} 7... Nf6 {[%clk 0:02:52.8]} 8. O-O {[%clk 0:02:52.5]}
8... Be7 {[%clk 0:02:54.2]} 9. Nbd2 {[%clk 0:02:53.1]} 9... O-O {[%clk
0:02:55.2]} 10. c4 {[%clk 0:02:54.7]} 10... Bb7 {[%clk 0:02:56.1]} 11. Rc1
{[%clk 0:02:55.4]} 11... Rc8 {[%clk 0:02:57.1]} 12. Re1 {[%clk 0:02:56.5]} 12...
Qd6 {[%clk 0:02:58.1]} 13. Nf1 {[%clk 0:02:57.4]} 13... Rfd8 {[%clk 0:02:58.6]}
14. Ng3 {[%clk 0:02:57.2]} 14... Qf4 {[%clk 0:02:55.2]} 15. Bf1 {[%clk
0:02:45.8]} 15... Bb4 {[%clk 0:02:54]} 16. Re3 {[%clk 0:02:38.1]} 16... Ng4
{[%clk 0:02:47.5]} 17. Rd3 {[%clk 0:02:38]} 17... dxc4 {[%clk 0:02:45.7]} 18.
bxc4 {[%clk 0:02:37.3]} 18... Na5 {[%clk 0:02:37.1]} 19. h3 {[%clk 0:01:57.6]}
19... Nf6 {[%clk 0:02:23.7]} 20. Re3 {[%clk 0:01:57.9]} 20... Ba6 {[%clk
0:01:44.2]} 21. Ne5 {[%clk 0:01:50.9]} 21... Bb7 {[%clk 0:01:24]} 22. Bd3 {[%clk
0:01:18.4]} 22... Nc6 {[%clk 0:01:11]} 23. Nxc6 {[%clk 0:01:17.1]} 23... Bxc6
{[%clk 0:01:11.2]} 24. Nh5 {[%clk 0:01:18.1]} 24... Nxh5 {[%clk 0:01:08.5]} 25.
Qxh5 {[%clk 0:01:20]} 25... g6 {[%clk 0:01:09.4]} 26. Qe2 {[%clk 0:01:11.4]}
26... Qg5 {[%clk 0:01:07.9]} 27. Rg3 {[%clk 0:01:04.6]} 27... Qf4 {[%clk
0:01:05.4]} 28. Rg4 {[%clk 0:00:57.7]} 28... Qd2 {[%clk 0:01:05.7]} 29. Qxd2
{[%clk 0:00:42.8]} 29... Bxd2 {[%clk 0:01:07.6]} 30. Rd1 {[%clk 0:00:44]} 30...
Bh6 {[%clk 0:01:07.6]} 31. Bf1 {[%clk 0:00:38.6]} 31... Bg7 {[%clk 0:01:06.9]}
32. h4 {[%clk 0:00:38.5]} 32... Ba4 {[%clk 0:01:05.4]} 33. Rd2 {[%clk
0:00:37.3]} 33... Bc6 {[%clk 0:00:59.3]} 34. Rg3 {[%clk 0:00:36.4]} 34... Bb7
{[%clk 0:00:58.6]} 35. Ra3 {[%clk 0:00:36.8]} 35... Ra8 {[%clk 0:00:56.1]} 36.
h5 {[%clk 0:00:33.2]} 36... Bf8 {[%clk 0:00:57.2]} 37. Rb3 {[%clk 0:00:29.3]}
37... Rac8 {[%clk 0:00:51.6]} 38. a4 {[%clk 0:00:27.3]} 38... Bh6 {[%clk
0:00:46.9]} 39. Rd1 {[%clk 0:00:24.8]} 39... Bc6 {[%clk 0:00:47.9]} 40. a5
{[%clk 0:00:25.5]} 40... Ba4 {[%clk 0:00:48.9]} 41. Rdd3 {[%clk 0:00:23.2]}
41... Bxb3 {[%clk 0:00:49.8]} 42. Rxb3 {[%clk 0:00:25.1]} 42... Rb8 {[%clk
0:00:44.6]} 43. a6 {[%clk 0:00:25.8]} 43... Bg7 {[%clk 0:00:44.7]} 44. Rd3
{[%clk 0:00:25.8]} 44... Rbc8 {[%clk 0:00:45.5]} 45. Rd2 {[%clk 0:00:26.7]}
45... Rd7 {[%clk 0:00:43.8]} 46. g3 {[%clk 0:00:27]} 46... Rcd8 {[%clk
0:00:44.8]} 47. Bg2 {[%clk 0:00:22.9]} 47... Bxd4 {[%clk 0:00:44.4]} 48. Bc6
{[%clk 0:00:23.1]} 48... Rd6 {[%clk 0:00:41.7]} 49. Bb5 {[%clk 0:00:21]} 49...
Bxb2 {[%clk 0:00:36.3]} 50. Rxb2 {[%clk 0:00:22.9]} 50... Rd2 {[%clk 0:00:30.9]}
51. Rb3 {[%clk 0:00:23.8]} 51... R8d3 {[%clk 0:00:26.6]} 52. Rb4 {[%clk
0:00:24.3]} 52... Rc3 {[%clk 0:00:23.4]} 53. Rb1 {[%clk 0:00:20.4]} 53... Rcc2
{[%clk 0:00:23.6]} 54. Rf1 {[%clk 0:00:21.8]} 54... gxh5 {[%clk 0:00:24.3]} 55.
Kg2 {[%clk 0:00:22.8]} 55... Kg7 {[%clk 0:00:25.2]} 56. Kg1 {[%clk 0:00:19.1]}
56... f5 {[%clk 0:00:26.1]} 57. Kg2 {[%clk 0:00:21]} 57... Kf6 {[%clk 0:00:27]}
58. Bc6 {[%clk 0:00:20.5]} 58... Rxc4 {[%clk 0:00:24.1]} 59. Bf3 {[%clk
0:00:22]} 59... Kg5 {[%clk 0:00:21.9]} 60. Rh1 {[%clk 0:00:21.9]} 60... h4
{[%clk 0:00:21.5]} 61. gxh4+ {[%clk 0:00:22.1]} 61... Rxh4 {[%clk 0:00:22.5]}
62. Rc1 {[%clk 0:00:24]} 62... Rhd4 {[%clk 0:00:19.5]} 63. Rc7 {[%clk
0:00:24.7]} 63... Rd7 {[%clk 0:00:20.3]} 64. Rc8 {[%clk 0:00:24.9]} 64... Kf6
{[%clk 0:00:19]} 65. Bb7 {[%clk 0:00:25.9]} 65... Rd8 {[%clk 0:00:18.5]} 66. Rc7
{[%clk 0:00:25.5]} 66... R2d7 {[%clk 0:00:19.3]} 67. Rc2 {[%clk 0:00:25.6]}
67... h5 {[%clk 0:00:18.3]} 68. Rc6 {[%clk 0:00:26.2]} 68... h4 {[%clk
0:00:18.2]} 69. Bc8 {[%clk 0:00:27.1]} 69... Rg7+ {[%clk 0:00:16.3]} 70. Kf3
{[%clk 0:00:27.5]} 70... Rxc8 {[%clk 0:00:11.6]} 71. Rxc8 {[%clk 0:00:28]} 71...
h3 {[%clk 0:00:09.8]} 72. Rh8 {[%clk 0:00:29.2]} 72... b5 {[%clk 0:00:06.4]} 73.
Rxh3 {[%clk 0:00:30.2]} 73... Rc7 {[%clk 0:00:07.7]} 74. Rh6+ {[%clk 0:00:30.7]}
74... Ke5 {[%clk 0:00:08.4]} 75. Ke3 {[%clk 0:00:31.8]} 75... Rc6 {[%clk
0:00:09.5]} 76. Rh7 {[%clk 0:00:28.3]} 76... Rxa6 {[%clk 0:00:09.9]} 77. Rb7
{[%clk 0:00:30.2]} 77... Ra3+ {[%clk 0:00:09.9]} 78. Ke2 {[%clk 0:00:30.1]}
78... a6 {[%clk 0:00:11.2]} 79. Rb6 {[%clk 0:00:31.1]} 79... f4 {[%clk
0:00:10.3]} 80. f3 {[%clk 0:00:31.6]} 80... Ra2+ {[%clk 0:00:10.8]} 81. Kd3
{[%clk 0:00:32.7]} 81... Ra3+ {[%clk 0:00:12.1]} 82. Ke2 {[%clk 0:00:33.9]}
82... Re3+ {[%clk 0:00:13.2]} 83. Kf2 {[%clk 0:00:34.7]} 83... Ra3 {[%clk
0:00:09.7]} 84. Ke2 {[%clk 0:00:36]} 84... Kf5 {[%clk 0:00:09.5]} 85. Rc6 {[%clk
0:00:04.5]} 85... e5 {[%clk 0:00:10.2]} 86. Rc7 {[%clk 0:00:04.3]} 86... Ra2+
{[%clk 0:00:09.5]} 87. Ke1 {[%clk 0:00:05]} 87... b4 {[%clk 0:00:09.2]} 88. Rb7
{[%clk 0:00:05.5]} 88... a5 {[%clk 0:00:10.3]} 89. Rb5 {[%clk 0:00:06.5]} 89...
Ke6 {[%clk 0:00:07.1]} 90. Kf1 {[%clk 0:00:08]} 90... Kd6 {[%clk 0:00:07.4]} 91.
Ke1 {[%clk 0:00:09.4]} 91... Ra3 {[%clk 0:00:08.5]} 92. Ke2 {[%clk 0:00:09.6]}
92... b3 {[%clk 0:00:08.1]} 93. Kd2 {[%clk 0:00:09.7]} 93... Ra2+ {[%clk
0:00:07.7]} 94. Kd3 {[%clk 0:00:10.1]} 94... Rf2 {[%clk 0:00:07.2]} 95. Ke4
{[%clk 0:00:10.4]} 95... b2 {[%clk 0:00:06.4]} 96. Rb8 {[%clk 0:00:06.7]} 96...
a4 {[%clk 0:00:06.7]} 97. Rb6+ {[%clk 0:00:03.6]} 97... Kc5 {[%clk 0:00:07.3]}
98. Rb8 {[%clk 0:00:05.2]} 98... a3 {[%clk 0:00:08.5]} 99. Rc8+ {[%clk
0:00:06.4]} 99... Kb4 {[%clk 0:00:09.3]} 100. Rb8+ {[%clk 0:00:08.3]} 100... Kc3
{[%clk 0:00:10.6]} 101. Rc8+ {[%clk 0:00:09.7]} 101... Kb3 {[%clk 0:00:11.7]}
102. Kd3 {[%clk 0:00:10.3]} 102... b1=Q+ {[%clk 0:00:11.4]} 0-1

[Event "*** Titled Tuesday Blitz"]
[Site "Chess.com"]
[Date "2019.03.05"]
[Round "7"]
[White "wenx95"]
[Black "Alexey_Potapov"]
[Result "1-0"]
[WhiteElo "2528"]
[BlackElo "2739"]
[TimeControl "180+2"]
[EndTime "14:33:39 PST"]
[Termination "wenx95 won by resignation"]

1. c4 {[%clk 0:02:58.7]} 1... d6 {[%clk 0:03:01]} 2. g3 {[%clk 0:02:59.3]} 2...
Nf6 {[%clk 0:03:02.3]} 3. Bg2 {[%clk 0:02:59.8]} 3... g6 {[%clk 0:03:03.9]} 4.
Nc3 {[%clk 0:02:59.4]} 4... Bg7 {[%clk 0:03:05.5]} 5. e4 {[%clk 0:03:00.9]} 5...
O-O {[%clk 0:03:06]} 6. Nge2 {[%clk 0:03:01.5]} 6... c5 {[%clk 0:03:05.4]} 7.
O-O {[%clk 0:03:02.4]} 7... Nc6 {[%clk 0:03:06.6]} 8. d3 {[%clk 0:03:03.2]} 8...
Rb8 {[%clk 0:03:06.6]} 9. h3 {[%clk 0:03:01.5]} 9... a6 {[%clk 0:03:04]} 10. a4
{[%clk 0:03:01]} 10... Bd7 {[%clk 0:02:59.5]} 11. Be3 {[%clk 0:02:55]} 11... Qc8
{[%clk 0:02:58.9]} 12. Kh2 {[%clk 0:02:51.6]} 12... b6 {[%clk 0:02:50.6]} 13.
Rc1 {[%clk 0:02:45.3]} 13... Ne8 {[%clk 0:02:51.1]} 14. d4 {[%clk 0:02:31.1]}
14... cxd4 {[%clk 0:02:50]} 15. Nxd4 {[%clk 0:02:33]} 15... Nxd4 {[%clk
0:02:46.6]} 16. Bxd4 {[%clk 0:02:30.3]} 16... Bxd4 {[%clk 0:02:46.3]} 17. Qxd4
{[%clk 0:02:30.8]} 17... Qc5 {[%clk 0:02:47.8]} 18. Qd3 {[%clk 0:02:26.4]} 18...
Nc7 {[%clk 0:02:44.8]} 1-0

[Event "*** Titled Tuesday Blitz"]
[Site "Chess.com"]
[Date "2019.03.05"]
[Round "7"]
[White "cherryandmint"]
[Black "Alopekos"]
[Result "0-1"]
[WhiteElo "2609"]
[BlackElo "2453"]
[TimeControl "180+2"]
[EndTime "14:33:54 PST"]
[Termination "Alopekos won by resignation"]

1. e4 {[%clk 0:03:01.9]} 1... e5 {[%clk 0:03:00.6]} 2. Nf3 {[%clk 0:03:02.9]}
2... Nc6 {[%clk 0:03:00.7]} 3. Bc4 {[%clk 0:03:04.2]} 3... Nf6 {[%clk
0:03:01.2]} 4. d3 {[%clk 0:03:05.7]} 4... Be7 {[%clk 0:03:02.2]} 5. O-O {[%clk
0:03:06.5]} 5... O-O {[%clk 0:03:03.7]} 6. Re1 {[%clk 0:03:08]} 6... d6 {[%clk
0:03:04.8]} 7. a4 {[%clk 0:03:09.7]} 7... Kh8 {[%clk 0:02:58.6]} 8. Nc3 {[%clk
0:03:09.6]} 8... Ng8 {[%clk 0:02:47]} 9. Nd5 {[%clk 0:03:09.8]} 9... f5 {[%clk
0:02:47.3]} 10. b4 {[%clk 0:03:10.3]} 10... fxe4 {[%clk 0:02:45.5]} 11. dxe4
{[%clk 0:03:03.9]} 11... Bg4 {[%clk 0:02:45.1]} 12. Be2 {[%clk 0:03:04.2]} 12...
Nf6 {[%clk 0:02:34.6]} 13. b5 {[%clk 0:02:43.2]} 13... Bxf3 {[%clk 0:02:26.8]}
14. Bxf3 {[%clk 0:02:43.1]} 14... Nd4 {[%clk 0:02:27]} 15. Nxf6 {[%clk
0:02:39.4]} 15... Nxf3+ {[%clk 0:02:17.8]} 16. Qxf3 {[%clk 0:02:41.3]} 16...
Bxf6 {[%clk 0:02:17.5]} 17. c4 {[%clk 0:02:42]} 17... Bh4 {[%clk 0:02:16.8]} 18.
Qe2 {[%clk 0:02:35.4]} 18... Bxf2+ {[%clk 0:02:07.8]} 19. Qxf2 {[%clk
0:02:34.6]} 19... Rxf2 {[%clk 0:02:07.8]} 20. Kxf2 {[%clk 0:02:36.5]} 20... Qh4+
{[%clk 0:02:09]} 0-1

[Event "*** Titled Tuesday Blitz"]
[Site "Chess.com"]
[Date "2019.03.05"]
[Round "7"]
[White "Jenia84"]
[Black "MathiasWomacka"]
[Result "0-1"]
[WhiteElo "2179"]
[BlackElo "2269"]
[TimeControl "180+2"]
[EndTime "14:34:23 PST"]
[Termination "MathiasWomacka won by resignation"]

1. e4 {[%clk 0:02:59.8]} 1... c5 {[%clk 0:02:59.6]} 2. Nf3 {[%clk 0:02:59.7]}
2... d6 {[%clk 0:03:00.5]} 3. Bb5+ {[%clk 0:02:53.7]} 3... Nd7 {[%clk
0:02:54.5]} 4. O-O {[%clk 0:02:52.5]} 4... a6 {[%clk 0:02:53.3]} 5. Bd3 {[%clk
0:02:51.3]} 5... Ngf6 {[%clk 0:02:51.7]} 6. c3 {[%clk 0:02:52.1]} 6... b5 {[%clk
0:02:44.1]} 7. a4 {[%clk 0:02:51.1]} 7... Bb7 {[%clk 0:02:40.5]} 8. axb5 {[%clk
0:02:40.4]} 8... axb5 {[%clk 0:02:42.4]} 9. Rxa8 {[%clk 0:02:39.2]} 9... Qxa8
{[%clk 0:02:44.3]} 10. e5 {[%clk 0:02:16]} 10... Bxf3 {[%clk 0:02:31.6]} 11.
Qxf3 {[%clk 0:02:15]} 11... Qxf3 {[%clk 0:02:29.8]} 12. gxf3 {[%clk 0:02:16]}
12... Nxe5 {[%clk 0:02:31.1]} 13. Bxb5+ {[%clk 0:02:16.5]} 13... Kd8 {[%clk
0:02:27.2]} 14. Kg2 {[%clk 0:02:14.1]} 14... e6 {[%clk 0:02:16.9]} 15. d4 {[%clk
0:02:14.2]} 15... cxd4 {[%clk 0:02:17.3]} 16. cxd4 {[%clk 0:02:14.2]} 16... Ng6
{[%clk 0:02:18.6]} 17. Nc3 {[%clk 0:02:01.4]} 17... d5 {[%clk 0:02:19.2]} 18.
Bf4 {[%clk 0:01:57.7]} 18... Nxf4+ {[%clk 0:02:18.6]} 0-1

[Event "*** Titled Tuesday Blitz"]
[Site "Chess.com"]
[Date "2019.03.05"]
[Round "7"]
[White "politeplayer"]
[Black "tteshan"]
[Result "1-0"]
[WhiteElo "2095"]
[BlackElo "2206"]
[TimeControl "180+2"]
[EndTime "14:35:40 PST"]
[Termination "politeplayer won by resignation"]

1. e4 {[%clk 0:02:37.6]} 1... c5 {[%clk 0:02:59.6]} 2. d4 {[%clk 0:02:37.7]}
2... cxd4 {[%clk 0:02:59.7]} 3. c3 {[%clk 0:02:38.9]} 3... dxc3 {[%clk
0:03:00.1]} 4. Nxc3 {[%clk 0:02:39.4]} 4... g6 {[%clk 0:02:59.7]} 5. Bc4 {[%clk
0:02:40.3]} 5... Bg7 {[%clk 0:02:59.3]} 6. Nf3 {[%clk 0:02:35.8]} 6... d6 {[%clk
0:02:46]} 7. e5 {[%clk 0:02:29.9]} 7... Nh6 {[%clk 0:02:28.2]} 8. exd6 {[%clk
0:02:16.1]} 8... O-O {[%clk 0:02:28.4]} 9. dxe7 {[%clk 0:01:50.6]} 9... Qxe7+
{[%clk 0:02:29.2]} 10. Be3 {[%clk 0:01:50.7]} 10... Rd8 {[%clk 0:02:24.8]} 11.
Nd5 {[%clk 0:01:43.2]} 11... Qe4 {[%clk 0:02:02.8]} 12. Ng5 {[%clk 0:00:59.2]}
12... Qxc4 {[%clk 0:01:52.9]} 13. Ne7+ {[%clk 0:00:58.6]} 1-0

[Event "*** Titled Tuesday Blitz"]
[Site "Chess.com"]
[Date "2019.03.05"]
[Round "7"]
[White "b_6"]
[Black "ahkashefi2800"]
[Result "1-0"]
[WhiteElo "2439"]
[BlackElo "2256"]
[TimeControl "180+2"]
[EndTime "14:36:13 PST"]
[Termination "b_6 won by checkmate"]

1. d4 {[%clk 0:03:01.9]} 1... d5 {[%clk 0:02:57.6]} 2. Bf4 {[%clk 0:03:02.3]}
2... c6 {[%clk 0:02:52]} 3. e3 {[%clk 0:03:03]} 3... Bf5 {[%clk 0:02:52.6]} 4.
c4 {[%clk 0:03:02.5]} 4... e6 {[%clk 0:02:53.3]} 5. Nc3 {[%clk 0:02:59.4]} 5...
Bd6 {[%clk 0:02:53.5]} 6. Bg3 {[%clk 0:02:54.3]} 6... Nf6 {[%clk 0:02:51.8]} 7.
Qb3 {[%clk 0:02:54.3]} 7... b6 {[%clk 0:02:49.9]} 8. Nf3 {[%clk 0:02:47.9]} 8...
Bxg3 {[%clk 0:02:49.9]} 9. hxg3 {[%clk 0:02:48.6]} 9... O-O {[%clk 0:02:50.8]}
10. Be2 {[%clk 0:02:45.6]} 10... Nbd7 {[%clk 0:02:46.9]} 11. Nh4 {[%clk
0:02:41.2]} 11... Bg6 {[%clk 0:02:34.9]} 12. Nxg6 {[%clk 0:02:41.3]} 12... hxg6
{[%clk 0:02:36.4]} 13. O-O-O {[%clk 0:02:32.8]} 13... a5 {[%clk 0:02:37.2]} 14.
Rh3 {[%clk 0:02:23.8]} 14... g5 {[%clk 0:02:24]} 15. Rdh1 {[%clk 0:02:20.2]}
15... g6 {[%clk 0:02:25]} 16. f4 {[%clk 0:01:52]} 16... g4 {[%clk 0:02:20.1]}
17. Rh4 {[%clk 0:01:46.1]} 17... Kg7 {[%clk 0:02:20.9]} 18. Bxg4 {[%clk
0:01:42.5]} 18... dxc4 {[%clk 0:02:14.2]} 19. Qxc4 {[%clk 0:01:36.6]} 19... b5
{[%clk 0:02:15.3]} 20. Qd3 {[%clk 0:01:20.5]} 20... b4 {[%clk 0:01:59.6]} 21.
Ne4 {[%clk 0:01:18.1]} 21... Nxg4 {[%clk 0:01:35.6]} 22. Rh7+ {[%clk 0:01:13.9]}
22... Kg8 {[%clk 0:01:26.7]} 23. Rh8+ {[%clk 0:01:15]} 23... Kg7 {[%clk
0:01:28.1]} 24. R1h7# {[%clk 0:01:15.8]} 1-0

[Event "*** Titled Tuesday Blitz"]
[Site "Chess.com"]
[Date "2019.03.05"]
[Round "7"]
[White "Andrei_Belozerov"]
[Black "xLuring1"]
[Result "1-0"]
[WhiteElo "2489"]
[BlackElo "2408"]
[TimeControl "180+2"]
[EndTime "14:36:23 PST"]
[Termination "Andrei_Belozerov won by resignation"]

1. e4 {[%clk 0:03:01.9]} 1... c5 {[%clk 0:02:57.2]} 2. Nf3 {[%clk 0:03:02.1]}
2... Nc6 {[%clk 0:02:57.9]} 3. d4 {[%clk 0:03:03.1]} 3... cxd4 {[%clk
0:02:59.8]} 4. Nxd4 {[%clk 0:03:04.3]} 4... Qc7 {[%clk 0:02:59.4]} 5. Nc3 {[%clk
0:03:04.7]} 5... e6 {[%clk 0:02:59.1]} 6. Be3 {[%clk 0:03:05]} 6... a6 {[%clk
0:02:59.7]} 7. Qf3 {[%clk 0:03:03.8]} 7... Nf6 {[%clk 0:03:00.1]} 8. O-O-O
{[%clk 0:03:02.5]} 8... Be7 {[%clk 0:03:01.4]} 9. Be2 {[%clk 0:02:52.2]} 9... d6
{[%clk 0:02:55.3]} 10. g4 {[%clk 0:02:52.1]} 10... O-O {[%clk 0:02:52.2]} 11. g5
{[%clk 0:02:52.2]} 11... Nd7 {[%clk 0:02:53]} 12. h4 {[%clk 0:02:48.1]} 12...
Nce5 {[%clk 0:02:52.8]} 13. Qg2 {[%clk 0:02:48.8]} 13... Nc4 {[%clk 0:02:52.1]}
14. Bxc4 {[%clk 0:02:48.9]} 14... Qxc4 {[%clk 0:02:52.8]} 15. h5 {[%clk
0:02:49]} 15... g6 {[%clk 0:02:50.4]} 16. hxg6 {[%clk 0:02:39]} 16... fxg6
{[%clk 0:02:50.4]} 17. Qh3 {[%clk 0:02:39]} 17... Rf7 {[%clk 0:02:48.4]} 18.
Qxe6 {[%clk 0:02:38]} 18... Qxe6 {[%clk 0:02:42.3]} 19. Nxe6 {[%clk 0:02:38.3]}
19... Ne5 {[%clk 0:02:43.5]} 20. Nc7 {[%clk 0:02:36.4]} 20... Rb8 {[%clk
0:02:42.1]} 21. Ba7 {[%clk 0:02:28.5]} 21... Bxg5+ {[%clk 0:02:38]} 22. Kb1
{[%clk 0:02:28.5]} 22... Bg4 {[%clk 0:02:08.8]} 23. Bxb8 {[%clk 0:02:25]} 23...
Bxd1 {[%clk 0:02:09.4]} 24. Rxd1 {[%clk 0:02:20]} 24... Nc6 {[%clk 0:02:08]} 25.
Ne6 {[%clk 0:02:13.7]} 25... Nxb8 {[%clk 0:02:08.8]} 26. Nxg5 {[%clk 0:02:14.2]}
26... Rxf2 {[%clk 0:02:10.7]} 27. Rxd6 {[%clk 0:02:10.4]} 27... Nc6 {[%clk
0:02:08.8]} 28. b3 {[%clk 0:02:04.6]} 28... Kg7 {[%clk 0:01:56.6]} 29. Nd5
{[%clk 0:02:04.5]} 29... h5 {[%clk 0:01:55.8]} 30. Ne6+ {[%clk 0:02:00.6]} 30...
Kh6 {[%clk 0:01:54.2]} 31. Nef4 {[%clk 0:02:01.1]} 31... Rf1+ {[%clk 0:01:52.1]}
32. Kb2 {[%clk 0:02:01.6]} 32... Rg1 {[%clk 0:01:53.2]} 33. Rd7 {[%clk
0:01:45.9]} 33... h4 {[%clk 0:01:51.1]} 34. Nf6 {[%clk 0:01:46.8]} 34... Kg5
{[%clk 0:01:44.6]} 35. Nh3+ {[%clk 0:01:46.2]} 1-0

[Event "*** Titled Tuesday Blitz"]
[Site "Chess.com"]
[Date "2019.03.05"]
[Round "7"]
[White "chessmaxusa"]
[Black "gmjoey1"]
[Result "0-1"]
[WhiteElo "2531"]
[BlackElo "2728"]
[TimeControl "180+2"]
[EndTime "14:36:32 PST"]
[Termination "gmjoey1 won by resignation"]

1. d4 {[%clk 0:03:01.9]} 1... Nf6 {[%clk 0:03:00.7]} 2. Nf3 {[%clk 0:03:03.1]}
2... c5 {[%clk 0:03:01.1]} 3. c3 {[%clk 0:03:03.6]} 3... d5 {[%clk 0:03:01.3]}
4. Bf4 {[%clk 0:03:04.9]} 4... Nc6 {[%clk 0:03:02.1]} 5. e3 {[%clk 0:03:04.6]}
5... Qb6 {[%clk 0:03:02.6]} 6. Qb3 {[%clk 0:03:06.1]} 6... c4 {[%clk 0:03:03]}
7. Qc2 {[%clk 0:03:07.7]} 7... Bf5 {[%clk 0:03:03.2]} 8. Qc1 {[%clk 0:03:09.3]}
8... Rc8 {[%clk 0:03:03.5]} 9. Nbd2 {[%clk 0:03:10.4]} 9... Qd8 {[%clk
0:03:03.9]} 10. h3 {[%clk 0:03:10.3]} 10... e6 {[%clk 0:03:03.4]} 11. Be2 {[%clk
0:03:10.5]} 11... b5 {[%clk 0:03:03.9]} 12. b3 {[%clk 0:03:10.4]} 12... Qa5
{[%clk 0:02:56.1]} 13. b4 {[%clk 0:03:10.2]} 13... Nxb4 {[%clk 0:02:51.7]} 14.
cxb4 {[%clk 0:03:11.2]} 14... Bxb4 {[%clk 0:02:52.8]} 15. O-O {[%clk 0:03:12.4]}
15... O-O {[%clk 0:02:34.3]} 16. a4 {[%clk 0:03:09.1]} 16... Bc3 {[%clk
0:02:30.8]} 17. Ra3 {[%clk 0:02:24.8]} 17... b4 {[%clk 0:02:29.7]} 18. Rxc3
{[%clk 0:02:14.9]} 18... bxc3 {[%clk 0:02:30.1]} 19. Nb1 {[%clk 0:02:16.1]}
19... Bxb1 {[%clk 0:02:08]} 20. Qxb1 {[%clk 0:02:15.7]} 20... Qxa4 {[%clk
0:02:09.1]} 21. Rc1 {[%clk 0:02:03.3]} 21... Ne4 {[%clk 0:02:09.2]} 22. Ng5
{[%clk 0:01:56.3]} 22... Nxg5 {[%clk 0:02:03.9]} 23. Bxg5 {[%clk 0:01:57.1]}
23... Rb8 {[%clk 0:02:04.8]} 24. Qa1 {[%clk 0:01:27.7]} 24... Qxa1 {[%clk
0:02:04.2]} 25. Rxa1 {[%clk 0:01:28.8]} 25... c2 {[%clk 0:02:05.2]} 26. Rf1
{[%clk 0:01:08.8]} 26... Rb1 {[%clk 0:01:55.4]} 27. e4 {[%clk 0:01:09.6]} 27...
Rxf1+ {[%clk 0:01:55.7]} 28. Kxf1 {[%clk 0:01:10.2]} 28... Rb8 {[%clk
0:01:56.6]} 29. exd5 {[%clk 0:00:57.4]} 29... Rb1+ {[%clk 0:01:55.8]} 0-1

[Event "*** Titled Tuesday Blitz"]
[Site "Chess.com"]
[Date "2019.03.05"]
[Round "7"]
[White "BASSU1"]
[Black "Sajkochess"]
[Result "0-1"]
[WhiteElo "2089"]
[BlackElo "2255"]
[TimeControl "180+2"]
[EndTime "14:36:38 PST"]
[Termination "Sajkochess won by resignation"]

1. e4 {[%clk 0:03:01.9]} 1... c6 {[%clk 0:02:58.9]} 2. d4 {[%clk 0:02:59.4]}
2... d5 {[%clk 0:03:00.2]} 3. Nc3 {[%clk 0:03:01.3]} 3... dxe4 {[%clk
0:03:01.1]} 4. Nxe4 {[%clk 0:03:03.2]} 4... Bf5 {[%clk 0:03:02.4]} 5. Ng3 {[%clk
0:03:04.3]} 5... Bg6 {[%clk 0:03:03.5]} 6. Nf3 {[%clk 0:03:05.7]} 6... Nd7
{[%clk 0:03:04]} 7. Bc4 {[%clk 0:03:06.1]} 7... e6 {[%clk 0:03:04.6]} 8. O-O
{[%clk 0:03:05]} 8... Ngf6 {[%clk 0:03:02.5]} 9. c3 {[%clk 0:03:06.4]} 9... Bd6
{[%clk 0:03:00.5]} 10. Ng5 {[%clk 0:02:56.4]} 10... O-O {[%clk 0:02:54.9]} 11.
Bxe6 {[%clk 0:02:54.1]} 11... fxe6 {[%clk 0:02:53.6]} 12. Nxe6 {[%clk 0:02:56]}
12... Qe7 {[%clk 0:02:52.4]} 13. Nxf8 {[%clk 0:02:57.2]} 13... Qxf8 {[%clk
0:02:52.3]} 14. Qb3+ {[%clk 0:02:58.3]} 14... Kh8 {[%clk 0:02:42.9]} 15. Qxb7
{[%clk 0:02:53.3]} 15... Rc8 {[%clk 0:01:44.5]} 16. Be3 {[%clk 0:02:29]} 16...
Rc7 {[%clk 0:01:44.8]} 17. Qa6 {[%clk 0:02:29.5]} 17... h5 {[%clk 0:01:45.2]}
18. Ne2 {[%clk 0:02:27.5]} 18... Ng4 {[%clk 0:01:39.6]} 19. h3 {[%clk
0:02:23.9]} 19... Nh2 {[%clk 0:01:20.4]} 20. Rfe1 {[%clk 0:02:17.2]} 20... Nf3+
{[%clk 0:01:07]} 21. gxf3 {[%clk 0:02:18.2]} 21... Qxf3 {[%clk 0:01:08.5]} 22.
Qa5 {[%clk 0:01:52.1]} 22... Be4 {[%clk 0:00:58.7]} 23. Qxh5+ {[%clk 0:01:37.4]}
23... Qxh5 {[%clk 0:01:00.6]} 24. Bf4 {[%clk 0:01:24.7]} 0-1

[Event "*** Titled Tuesday Blitz"]
[Site "Chess.com"]
[Date "2019.03.05"]
[Round "7"]
[White "albi1999"]
[Black "Marcus_Harvey"]
[Result "0-1"]
[WhiteElo "2434"]
[BlackElo "2598"]
[TimeControl "180+2"]
[EndTime "14:36:43 PST"]
[Termination "Marcus_Harvey won by resignation"]

1. d4 {[%clk 0:03:01.9]} 1... Nf6 {[%clk 0:03:00.5]} 2. c4 {[%clk 0:03:02.2]}
2... e6 {[%clk 0:03:01.6]} 3. Nf3 {[%clk 0:03:01.3]} 3... Bb4+ {[%clk
0:02:59.9]} 4. Bd2 {[%clk 0:03:01.5]} 4... Qe7 {[%clk 0:03:01.4]} 5. g3 {[%clk
0:03:00.1]} 5... O-O {[%clk 0:03:02.4]} 6. Bg2 {[%clk 0:03:00.6]} 6... Bxd2+
{[%clk 0:03:03.9]} 7. Qxd2 {[%clk 0:02:59.2]} 7... d6 {[%clk 0:03:05.8]} 8. Nc3
{[%clk 0:02:59.5]} 8... e5 {[%clk 0:03:07.3]} 9. O-O {[%clk 0:02:59.6]} 9... Re8
{[%clk 0:03:08.6]} 10. e4 {[%clk 0:02:57.9]} 10... Bg4 {[%clk 0:03:09.8]} 11.
Ne1 {[%clk 0:02:52.6]} 11... Nc6 {[%clk 0:03:10.9]} 12. Nc2 {[%clk 0:02:52]}
12... Qd7 {[%clk 0:03:07.8]} 13. Rfe1 {[%clk 0:02:51.2]} 13... Bh3 {[%clk
0:03:07.3]} 14. Bh1 {[%clk 0:02:51.6]} 14... a5 {[%clk 0:03:03.6]} 15. Nd5
{[%clk 0:02:51.4]} 15... Nxd5 {[%clk 0:03:02.7]} 16. cxd5 {[%clk 0:02:53.3]}
16... Nxd4 {[%clk 0:03:01.5]} 17. Nxd4 {[%clk 0:02:54.5]} 17... exd4 {[%clk
0:03:03.4]} 18. Qxd4 {[%clk 0:02:56.2]} 18... c5 {[%clk 0:03:04.8]} 19. dxc6
{[%clk 0:02:57]} 19... bxc6 {[%clk 0:03:00.5]} 20. Rad1 {[%clk 0:02:55.7]} 20...
Rab8 {[%clk 0:03:01.5]} 21. b3 {[%clk 0:02:44.3]} 21... Re6 {[%clk 0:02:59.1]}
22. Rd2 {[%clk 0:02:36.9]} 22... Rb4 {[%clk 0:02:47.4]} 23. Qd3 {[%clk
0:02:20.5]} 23... d5 {[%clk 0:02:44.6]} 24. Rc1 {[%clk 0:02:15.4]} 24... Qe8
{[%clk 0:02:43.8]} 25. a3 {[%clk 0:01:58.9]} 25... dxe4 {[%clk 0:02:43.6]} 26.
Qd8 {[%clk 0:01:34.4]} 26... Rxb3 {[%clk 0:02:41.9]} 27. Qxa5 {[%clk 0:01:35.1]}
27... Rd3 {[%clk 0:02:25.1]} 28. Rb2 {[%clk 0:01:17.7]} 28... e3 {[%clk
0:02:20]} 29. Qh5 {[%clk 0:01:13.9]} 29... e2 {[%clk 0:02:15.3]} 30. Qxh3 {[%clk
0:00:37.9]} 30... Rd1+ {[%clk 0:02:06.3]} 0-1